bitfinex-derivatives/quotes_BTCF0:USTF0_20241214
["timestamp","ask_amount","ask_price","bid_price","bid_amount"]
[1734198713540,0.11690422,100930.0,100920.0,0.049542]
[1734198713732,0.37220031,100940.0,100930.0,0.049537]
[1734198714233,0.00161031,100940.0,100930.0,0.50460446]
[1734198714534,0.00012282,100940.0,100930.0,0.53480446]
[1734198714742,0.47770422,100960.0,100950.0,0.049527]
[1734198714937,0.48770409,100960.0,100950.0,0.049527]
[1734198715133,0.00999987,100960.0,100950.0,0.14379446]
[1734198715339,0.67335249,100970.0,100960.0,0.049522]
[1734198715340,0.62148968,100970.0,100960.0,0.049522]
[1734198715533,0.11690422,100970.0,100960.0,0.049522]
[1734198715738,0.11749654,100970.0,100960.0,0.049522]
[1734198716540,0.11749654,100970.0,100960.0,0.081022]
[1734198716743,9.232e-05,100970.0,100960.0,0.17528946]
[1734198717131,9.232e-05,100970.0,100960.0,0.081022]
[1734198717535,0.09435978,100970.0,100960.0,0.081022]
[1734198717740,0.00059232,100970.0,100960.0,0.081022]
[1734198718337,0.50517678,100970.0,100960.0,0.049522]
[1734198718740,0.049532,100940.0,100930.0,0.23752249]
[1734198718943,0.50469178,100940.0,100930.0,0.23603641]
[1734198719247,0.36089232,100940.0,100930.0,0.42320507]
[1734198719544,0.11699654,100940.0,100930.0,0.049537]
[1734198719734,0.11699654,100940.0,100930.0,0.18716866]
[1734198719943,9.232e-05,100940.0,100930.0,0.0929012]
[1734198721848,9.232e-05,100940.0,100930.0,0.84796866]
[1734198722031,9.232e-05,100940.0,100930.0,0.87906866]
[1734198722235,9.232e-05,100940.0,100930.0,0.4848012]
[1734198722435,9.232e-05,100940.0,100930.0,0.049537]
[1734198723241,0.41042432,100940.0,100930.0,0.049537]
[1734198723459,0.41042432,100940.0,100930.0,0.14380446]
[1734198723460,9.232e-05,100940.0,100930.0,0.14380446]
[1734198723742,9.232e-05,100940.0,100930.0,0.84796866]
[1734198724149,9.232e-05,100940.0,100930.0,0.54796866]
[1734198724339,9.232e-05,100940.0,100930.0,0.84796866]
[1734198724738,0.47741092,100960.0,100950.0,0.049527]
[1734198725043,0.11661092,100960.0,100950.0,0.50459446]
[1734198725252,0.47741092,100970.0,100960.0,0.049522]
[1734198725544,0.47741092,100970.0,100960.0,0.082222]
[1734198725545,0.3608,100970.0,100960.0,0.082222]
[1734198726544,0.410317,100970.0,100960.0,0.082222]
[1734198726935,0.50458446,100970.0,100940.0,0.34522479]
[1734198727151,0.50458946,100960.0,100950.0,0.079826]
[1734198727645,0.50508946,100960.0,100950.0,0.079826]
[1734198728745,0.50458946,100960.0,100950.0,0.079826]
[1734198729638,0.50508946,100960.0,100950.0,0.079826]
[1734198730642,0.50458946,100960.0,100950.0,0.079826]
[1734198730946,0.410322,100960.0,100950.0,0.079826]
[1734198731748,0.50508946,100960.0,100950.0,0.079826]
[1734198732453,0.14428946,100960.0,100950.0,0.079826]
[1734198732651,0.50508946,100960.0,100950.0,0.079826]
[1734198732857,0.50458946,100960.0,100950.0,0.079826]
[1734198733157,0.50458946,100960.0,100950.0,0.0303]
[1734198733861,0.50508946,100960.0,100950.0,0.0303]
[1734198734049,0.55461646,100960.0,100940.0,0.082731]
[1734198734351,0.049527,100950.0,100940.0,0.115631]
[1734198734849,0.049527,100950.0,100940.0,0.049531]
[1734198735058,0.45506746,100950.0,100930.0,0.04333208]
[1734198735257,0.50460046,100940.0,100930.0,0.049536]
[1734198737759,0.049537,100930.0,100920.0,0.11402721]
[1734198737954,0.50460446,100930.0,100920.0,0.15737456]
[1734198738756,0.50460446,100930.0,100920.0,0.15787456]
[1734198738954,0.50460446,100930.0,100920.0,0.11452721]
[1734198739258,0.410337,100930.0,100920.0,0.15787943]
[1734198740958,0.410337,100930.0,100920.0,0.11452721]
[1734198741354,0.50460446,100930.0,100920.0,0.050041]
[1734198742259,0.50460446,100930.0,100920.0,0.0005]
[1734198742650,0.53650446,100930.0,100920.0,0.0005]
[1734198742951,0.53650446,100930.0,100920.0,0.04385398]
[1734198743155,0.53650446,100930.0,100920.0,0.0005]
[1734198743463,0.53650446,100930.0,100920.0,0.04385541]
[1734198743649,0.53650446,100930.0,100920.0,0.0005]
[1734198743854,0.53650446,100930.0,100920.0,0.04385601]
[1734198744258,0.53650446,100930.0,100920.0,0.0005]
[1734198745054,0.65311538,100930.0,100920.0,0.0005]
[1734198745759,0.95311538,100930.0,100920.0,0.0005]
[1734198746760,0.049547,100910.0,100900.0,0.21345]
[1734198746955,0.410347,100910.0,100900.0,0.25680948]
[1734198749060,0.12606746,100920.0,100910.0,0.049547]
[1734198749061,0.410344,100920.0,100910.0,0.049547]
[1734198749366,0.410344,100920.0,100910.0,0.09290648]
[1734198749756,0.410344,100920.0,100910.0,0.050047]
[1734198750660,0.42031506,100920.0,100910.0,0.050047]
[1734198750856,0.42031506,100920.0,100910.0,0.049547]
[1734198751851,0.42031506,100920.0,100910.0,0.050047]
[1734198752053,0.51458252,100920.0,100910.0,0.050047]
[1734198752262,0.51458252,100920.0,100910.0,0.0005]
[1734198752457,0.57748252,100920.0,100910.0,0.0005]
[1734198752855,0.049547,100910.0,100900.0,0.25681048]
[1734198753057,0.50461446,100910.0,100900.0,0.213451]
[1734198753262,0.410347,100910.0,100900.0,0.213451]
[1734198754772,0.410347,100910.0,100900.0,0.213951]
[1734198758373,0.410347,100910.0,100900.0,0.39141075]
[1734198758970,0.50461446,100910.0,100900.0,0.39141075]
[1734198759875,0.50461446,100910.0,100900.0,0.213951]
[1734198760069,0.50461446,100910.0,100900.0,0.39141075]
[1734198762469,0.410347,100910.0,100900.0,0.4347709]
[1734198763064,0.410347,100910.0,100900.0,0.67126361]
[1734198763865,0.3608,100910.0,100900.0,0.76503107]
[1734198764072,0.3608,100910.0,100900.0,0.58757132]
[1734198764272,0.42031406,100920.0,100900.0,1.46978599]
[1734198764472,0.05951406,100920.0,100910.0,0.28672465]
[1734198765674,0.47741092,100930.0,100910.0,0.72435226]
[1734198765970,0.50855029,100940.0,100930.0,0.049537]
[1734198765971,0.52843055,100940.0,100930.0,0.049537]
[1734198766169,0.52843055,100940.0,100930.0,0.22744915]
[1734198766367,0.52843055,100940.0,100930.0,0.4979268]
[1734198766768,0.52893055,100940.0,100930.0,0.4979268]
[1734198767273,0.62319801,100940.0,100930.0,0.17791215]
[1734198767775,0.62269801,100940.0,100930.0,0.17791215]
[1734198768869,0.62319801,100940.0,100930.0,0.17791215]
[1734198769481,0.53869435,100940.0,100930.0,0.22744915]
[1734198770180,0.52893055,100940.0,100930.0,0.4646268]
[1734198770364,0.52893055,100940.0,100930.0,0.22744915]
[1734198770564,0.41231963,100940.0,100930.0,0.4646268]
[1734198772173,0.36278663,100940.0,100930.0,0.4646268]
[1734198772580,0.36278663,100940.0,100930.0,0.22744915]
[1734198773171,0.36278663,100940.0,100930.0,0.4646268]
[1734198773581,0.36278663,100940.0,100930.0,0.22744915]
[1734198774477,0.0005,100940.0,100930.0,0.32171661]
[1734198774778,0.0005,100940.0,100930.0,1.08075815]
[1734198774973,0.0005,100940.0,100930.0,1.06918103]
[1734198775382,0.0005,100940.0,100930.0,0.7848391]
[1734198776188,0.0005,100940.0,100930.0,0.74147895]
[1734198777669,0.0005,100940.0,100930.0,1.10763895]
[1734198778471,0.0005,100940.0,100930.0,1.1509991]
[1734198778677,0.0005,100940.0,100930.0,1.62713874]
[1734198779080,0.37053883,100960.0,100930.0,1.92713874]
[1734198779297,0.37053883,100960.0,100950.0,0.14379446]
[1734198779776,0.37053883,100960.0,100950.0,0.17669446]
[1734198779974,0.3608,100960.0,100950.0,0.17669446]
[1734198780181,0.3608,100960.0,100950.0,0.20689446]
[1734198780683,0.3608,100960.0,100950.0,0.25025461]
[1734198781383,0.19881152,100980.0,100970.0,0.049518]
[1734198781384,0.56937567,100980.0,100970.0,0.049518]
[1734198781889,0.45276475,100980.0,100970.0,0.049518]
[1734198782089,0.45276475,100980.0,100970.0,0.14378546]
[1734198782387,0.4430006,100980.0,100970.0,0.14378546]
[1734198782682,0.3622866,100980.0,100970.0,0.14378546]
[1734198782987,0.4117996,100980.0,100970.0,0.049518]
[1734198783178,0.50606706,100980.0,100970.0,0.049518]
[1734198783381,0.4117996,100980.0,100970.0,0.049518]
[1734198783890,0.3622866,100980.0,100970.0,0.14378546]
[1734198784079,0.0014866,100980.0,100970.0,0.50458546]
[1734198784986,0.0019866,100980.0,100970.0,0.50458546]
[1734198785578,0.0514996,100980.0,100970.0,0.049518]
[1734198785887,0.0019866,100980.0,100970.0,0.14378546]
[1734198786483,0.0005,100980.0,100970.0,0.14378546]
[1734198789382,0.0005,100980.0,100970.0,0.50982546]
[1734198791381,0.0005,100980.0,100970.0,0.87062546]
[1734198791784,0.3608,100990.0,100970.0,1.27977292]
[1734198791991,0.3608,100990.0,100980.0,0.23804792]
[1734198792186,0.51528097,101010.0,101000.0,0.049503]
[1734198794294,0.43398197,101010.0,101000.0,0.14377046]
[1734198794488,0.3914,101010.0,101000.0,0.14377046]
[1734198794683,0.3608,101010.0,101000.0,0.14377046]
[1734198794890,0.41177956,101020.0,101010.0,0.049498]
[1734198796089,0.42154212,101020.0,101010.0,0.049498]
[1734198796683,0.53815304,101020.0,101010.0,0.049498]
[1734198796887,0.42154212,101020.0,101010.0,0.049498]
[1734198797488,0.53815304,101020.0,101010.0,0.049498]
[1734198797691,0.42154212,101020.0,101010.0,0.049498]
[1734198798089,0.36228556,101020.0,101010.0,0.14376546]
[1734198798990,0.00148556,101020.0,101010.0,0.14376546]
[1734198799797,0.00198556,101020.0,101010.0,0.14376546]
[1734198801696,0.00198556,101020.0,101010.0,0.17596546]
[1734198801895,0.0005,101020.0,101010.0,0.17596546]
[1734198802485,0.0005,101020.0,101010.0,0.27023292]
[1734198802893,0.0005,101020.0,101010.0,0.66895292]
[1734198803298,0.47741092,101050.0,101010.0,1.32975292]
[1734198803490,0.47741092,101050.0,101040.0,0.14375046]
[1734198803691,0.47741092,101050.0,101040.0,0.049483]
[1734198803692,0.3608,101050.0,101040.0,0.049483]
[1734198803903,0.65347458,101060.0,101050.0,0.049478]
[1734198804092,0.65347458,101060.0,101050.0,0.14374546]
[1734198804291,0.53686366,101060.0,101050.0,0.14374546]
[1734198804593,0.53686366,101060.0,101050.0,0.049478]
[1734198804594,0.3911,101060.0,101050.0,0.049478]
[1734198806100,0.440573,101060.0,101050.0,0.049478]
[1734198808101,0.3911,101060.0,101050.0,0.049478]
[1734198808503,0.53484046,101060.0,101050.0,0.049478]
[1734198808804,0.440573,101060.0,101050.0,0.049478]
[1734198809913,0.3911,101060.0,101050.0,0.049478]
[1734198811003,0.440573,101060.0,101050.0,0.049478]
[1734198811204,0.48536746,101060.0,101040.0,0.0315]
[1734198811415,0.410278,101050.0,101040.0,0.049482]
[1734198812003,0.3608,101050.0,101040.0,0.049482]
[1734198813803,0.55690572,101060.0,101050.0,0.049478]
[1734198820916,0.55740572,101060.0,101050.0,0.049478]
[1734198821210,0.60219818,101060.0,101030.0,0.064]
[1734198821508,0.410283,101040.0,101030.0,0.081188]
[1734198823824,0.410283,101040.0,101030.0,0.049488]
[1734198824016,0.53525046,101040.0,101030.0,0.049488]
[1734198824318,0.62091372,101040.0,101030.0,0.049488]
[1734198826113,0.76632713,101040.0,101030.0,0.049488]
[1734198827212,0.64999641,101040.0,101030.0,0.049488]
[1734198831125,0.62316899,101040.0,101030.0,0.14375546]
[1734198831311,0.26236899,101040.0,101030.0,0.60065546]
[1734198831619,0.11695558,101040.0,101030.0,0.60065546]
[1734198832412,0.62316899,101050.0,101040.0,0.049483]
[1734198832620,0.62316899,101050.0,101040.0,0.14375046]
[1734198832819,0.62324864,101050.0,101040.0,0.14375046]
[1734198833014,0.6232487,101050.0,101040.0,0.14375046]
[1734198833225,0.50621341,101050.0,101040.0,0.14375046]
[1734198833812,0.62328059,101050.0,101040.0,0.14375046]
[1734198834232,0.20487437,101050.0,101040.0,0.55592759]
[1734198834520,0.20486925,101050.0,101040.0,0.91672759]
[1734198835119,0.08780207,101050.0,101040.0,0.91780141]
[1734198835322,0.08780207,101050.0,101040.0,0.83434771]
[1734198835524,0.08780207,101050.0,101040.0,1.01206892]
[1734198835719,0.08780207,101050.0,101040.0,1.01206839]
[1734198836429,0.08780207,101050.0,101040.0,0.83434771]
[1734198837229,0.20486925,101060.0,101050.0,0.049479]
[1734198837425,0.20486925,101060.0,101050.0,0.38193173]
[1734198837618,0.20486925,101060.0,101050.0,0.41373173]
[1734198838323,0.20486925,101060.0,101050.0,0.31946427]
[1734198840123,0.20486925,101060.0,101050.0,0.28936427]
[1734198840719,0.56566925,101060.0,101050.0,0.28936427]
[1734198841030,0.56566925,101060.0,101050.0,0.38363173]
[1734198841528,0.08780207,101060.0,101050.0,0.38363173]
[1734198843427,0.08780207,101060.0,101050.0,0.97996152]
[1734198843619,0.56616925,101070.0,101060.0,0.049474]
[1734198843822,0.56566925,101070.0,101060.0,0.14374146]
[1734198844029,0.56566925,101070.0,101060.0,0.32142673]
[1734198844229,0.20486925,101070.0,101060.0,0.32142673]
[1734198844424,0.08780207,101070.0,101060.0,0.35202673]
[1734198844834,0.08830207,101070.0,101060.0,0.35202673]
[1734198845528,0.0005,101070.0,101060.0,0.35202673]
[1734198851436,0.0005,101070.0,101060.0,0.36200111]
[1734198852240,0.0005,101070.0,101060.0,0.72280111]
[1734198852425,0.0005,101070.0,101060.0,0.9583309]
[1734198852830,0.59886925,101090.0,101080.0,0.049464]
[1734198852831,0.12100207,101090.0,101080.0,0.049464]
[1734198853037,0.0332,101090.0,101080.0,0.14373146]
[1734198853935,0.394,101090.0,101080.0,0.049464]
[1734198854235,0.049464,101080.0,101070.0,0.2102445]
[1734198854429,0.410264,101080.0,101070.0,0.082468]
[1734198854630,0.3608,101080.0,101070.0,0.17673246]
[1734198855939,0.3608,101080.0,101070.0,0.14373246]
[1734198856142,0.4268,101080.0,101070.0,0.14373246]
[1734198856338,0.4268,101080.0,101060.0,0.21781888]
[1734198856339,0.65833353,101080.0,101060.0,0.23669088]
[1734198856534,0.3928,101070.0,101060.0,0.23669088]
[1734198856841,0.3928,101070.0,101060.0,0.05944638]
[1734198858345,0.3928,101070.0,101060.0,0.23669088]
[1734198858635,0.442269,101070.0,101060.0,0.05944638]
[1734198859142,0.53007107,101070.0,101060.0,0.23669088]
[1734198861340,0.48060207,101070.0,101060.0,0.33095834]
[1734198862042,0.44860207,101070.0,101060.0,0.33095834]
[1734198863242,0.56566925,101070.0,101060.0,0.56648813]
[1734198864743,0.56566925,101070.0,101060.0,0.38924363]
[1734198864946,0.44860207,101070.0,101060.0,0.42214363]
[1734198866746,0.44860207,101070.0,101060.0,0.18661384]
[1734198867050,0.44860207,101070.0,101060.0,0.42361994]
[1734198868236,0.44860207,101070.0,101060.0,0.71803218]
[1734198868649,0.08780207,101070.0,101060.0,0.48102608]
[1734198868845,0.08780207,101070.0,101060.0,0.70425069]
[1734198869647,0.08780207,101070.0,101060.0,0.70436096]
[1734198870049,0.56566925,101080.0,101070.0,0.049469]
[1734198870244,0.20486925,101080.0,101070.0,0.55858265]
[1734198870441,0.56566925,101080.0,101070.0,0.38079143]
[1734198871843,0.56566925,101080.0,101070.0,0.73770367]
[1734198871844,0.44860207,101080.0,101070.0,0.73770367]
[1734198872046,0.56566925,101080.0,101070.0,0.73770367]
[1734198872449,0.56566925,101080.0,101070.0,0.44329143]
[1734198873249,0.20486925,101080.0,101070.0,0.44329143]
[1734198873444,0.08780207,101080.0,101070.0,0.7220119]
[1734198873839,0.08780207,101080.0,101070.0,0.73772072]
[1734198874253,0.08780207,101080.0,101070.0,0.7220119]
[1734198874551,0.08780207,101080.0,101070.0,1.31986795]
[1734198874751,0.08780207,101080.0,101070.0,1.0828119]
[1734198875148,0.08780207,101080.0,101070.0,0.7220119]
[1734198875344,0.08780207,101080.0,101070.0,0.73768174]
[1734198875548,0.08780207,101080.0,101070.0,0.72208687]
[1734198875951,0.08780207,101080.0,101070.0,0.73768605]
[1734198876149,0.08780207,101080.0,101070.0,0.72203059]
[1734198876656,0.08780207,101080.0,101070.0,1.08283059]
[1734198877248,0.59666925,101090.0,101070.0,1.17709805]
[1734198877459,0.56616925,101090.0,101080.0,0.55847014]
[1734198878049,0.20486925,101090.0,101080.0,0.55847014]
[1734198878254,0.08780207,101090.0,101080.0,0.55847014]
[1734198878557,0.69676925,101100.0,101080.0,0.70793723]
[1734198878851,0.69676925,101100.0,101090.0,0.32142998]
[1734198879252,0.66566925,101100.0,101090.0,0.32142998]
[1734198879845,0.66566925,101100.0,101090.0,0.35202998]
[1734198880653,0.30486925,101100.0,101090.0,0.94982351]
[1734198880958,0.18780207,101100.0,101090.0,0.58902351]
[1734198881859,0.18780207,101100.0,101090.0,0.94982351]
[1734198882061,0.18780207,101100.0,101090.0,0.58902351]
[1734198882757,0.1,101100.0,101090.0,0.58902351]
[1734198883054,0.18780207,101100.0,101090.0,0.58902351]
[1734198883254,0.18780207,101100.0,101090.0,0.94982351]
[1734198883255,0.1,101100.0,101090.0,0.94982351]
[1734198883560,0.1,101100.0,101090.0,0.80281999]
[1734198883948,0.1,101100.0,101090.0,0.81280114]
[1734198884252,0.1,101100.0,101090.0,1.10721338]
[1734198884562,0.08780207,101120.0,101110.0,0.049449]
[1734198884756,0.08780207,101120.0,101110.0,0.22681722]
[1734198885057,0.08780207,101120.0,101110.0,0.38368468]
[1734198885254,0.44860207,101120.0,101110.0,0.22681622]
[1734198885457,0.51060207,101120.0,101110.0,0.049448]
[1734198886250,0.56004607,101120.0,101110.0,0.049448]
[1734198887456,0.48004607,101120.0,101110.0,0.049448]
[1734198888251,0.392244,101120.0,101110.0,0.049448]
[1734198888962,0.48004607,101120.0,101110.0,0.049448]
[1734198889153,0.392244,101120.0,101110.0,0.049448]
[1734198889956,0.392744,101120.0,101110.0,0.049448]
[1734198891853,0.48054607,101120.0,101110.0,0.049448]
[1734198892359,0.049449,101110.0,101100.0,0.049453]
[1734198892556,0.442549,101110.0,101100.0,0.049453]
[1734198892961,0.53035107,101110.0,101100.0,0.049453]
[1734198894465,0.62461853,101110.0,101080.0,0.4648058]
[1734198894770,0.62461853,101110.0,101080.0,0.22831483]
[1734198894771,0.410259,101090.0,101080.0,0.22831483]
[1734198895065,0.11810207,101100.0,101090.0,0.049459]
[1734198895263,0.0303,101100.0,101090.0,0.14372646]
[1734198895455,0.0303,101100.0,101090.0,0.32109468]
[1734198895955,0.0303,101100.0,101090.0,0.35309468]
[1734198896456,0.0303,101100.0,101090.0,0.71389468]
[1734198897560,0.0303,101100.0,101090.0,0.35309468]
[1734198899065,0.0303,101100.0,101090.0,0.58958565]
[1734198902169,0.0303,101100.0,101090.0,0.49531819]
[1734198902562,0.0303,101100.0,101090.0,0.31794997]
[1734198902563,0.11810207,101100.0,101090.0,0.31794997]
[1734198903263,0.11810207,101100.0,101090.0,0.37959272]
[1734198903455,0.08780207,101100.0,101090.0,0.41199272]
[1734198903854,0.08780207,101100.0,101090.0,0.77279272]
[1734198905262,0.08780207,101100.0,101090.0,0.80506379]
[1734198905469,0.08780207,101100.0,101090.0,0.56857282]
[1734198905658,0.08780207,101100.0,101090.0,0.86418653]
[1734198905855,0.08780207,101100.0,101090.0,0.56857282]
[1734198906060,0.08780207,101100.0,101090.0,1.08545371]
[1734198906568,0.20486925,101110.0,101100.0,0.049454]
[1734198906764,0.20486925,101110.0,101100.0,0.55778522]
[1734198906969,0.56566925,101110.0,101100.0,0.55778522]
[1734198907372,0.47786718,101110.0,101100.0,0.55778522]
[1734198907573,0.56571488,101110.0,101100.0,0.55778522]
[1734198907867,0.20491488,101110.0,101100.0,0.55778522]
[1734198908072,0.56571488,101110.0,101100.0,0.55778522]
[1734198908466,0.56571488,101110.0,101100.0,0.4638714]
[1734198908664,0.62328059,101110.0,101100.0,0.22706146]
[1734198908968,0.65458059,101110.0,101100.0,0.22706146]
[1734198909968,0.70402959,101110.0,101100.0,0.22706146]
[1734198912973,0.70402959,101110.0,101100.0,0.23681026]
[1734198914675,0.65458059,101110.0,101100.0,0.23681026]
[1734198914867,0.50916718,101110.0,101100.0,0.4736202]
[1734198915973,0.47786718,101110.0,101100.0,0.4736202]
[1734198916172,0.47786718,101110.0,101100.0,0.56753402]
[1734198917777,0.11706718,101110.0,101100.0,0.4736202]
[1734198917977,0.47786718,101110.0,101100.0,0.4736202]
[1734198918180,0.47786718,101110.0,101100.0,0.38992656]
[1734198918372,0.56578563,101110.0,101100.0,0.38992656]
[1734198918583,0.56578563,101110.0,101100.0,0.71754027]
[1734198918781,0.56578563,101110.0,101100.0,0.94001211]
[1734198919375,0.56578563,101110.0,101100.0,0.93967591]
[1734198919580,0.20498563,101110.0,101100.0,0.93967591]
[1734198919775,0.20498563,101110.0,101100.0,0.70286597]
[1734198921272,0.20498563,101110.0,101100.0,1.06366597]
[1734198921475,0.08791845,101110.0,101100.0,1.06366597]
[1734198921681,0.08791845,101110.0,101100.0,0.70286597]
[1734198921986,0.20498563,101110.0,101100.0,0.60895215]
[1734198922284,0.56578563,101110.0,101100.0,0.8140146]
[1734198922779,0.70914845,101110.0,101100.0,0.7645606]
[1734198922990,0.70914845,101110.0,101100.0,0.24681125]
[1734198923177,0.65433,101110.0,101100.0,0.42462235]
[1734198923678,0.79974341,101110.0,101100.0,0.42462235]
[1734198923880,0.70582959,101110.0,101100.0,0.42462235]
[1734198924279,0.56041618,101110.0,101100.0,0.24681125]
[1734198924472,0.56041618,101110.0,101100.0,0.29626525]
[1734198924678,0.58876241,101110.0,101100.0,0.47408128]
[1734198926880,0.58876241,101110.0,101100.0,0.23701883]
[1734198927287,0.65040888,101110.0,101100.0,0.23701883]
[1734198928182,0.65040888,101110.0,101100.0,0.35791172]
[1734198928381,0.55566241,101110.0,101100.0,0.35791172]
[1734198929385,0.50621341,101110.0,101100.0,0.41955819]
[1734198929585,0.50621341,101110.0,101100.0,0.35791172]
[1734198929983,0.62346057,101110.0,101100.0,0.59741186]
[1734198930183,0.62346057,101110.0,101100.0,0.45095819]
[1734198930184,0.56598808,101110.0,101100.0,0.45095819]
[1734198930383,0.56598808,101110.0,101100.0,0.7465719]
[1734198930585,0.47804716,101110.0,101100.0,0.45095819]
[1734198930986,0.56599176,101110.0,101100.0,0.9683819]
[1734198931585,0.20519176,101110.0,101100.0,0.9683819]
[1734198931884,0.20519176,101110.0,101100.0,0.73131945]
[1734198932086,0.0879446,101110.0,101100.0,0.73148979]
[1734198932282,0.0879446,101110.0,101100.0,1.08478448]
[1734198932490,0.0879446,101110.0,101100.0,1.09228979]
[1734198932882,0.0879446,101110.0,101100.0,0.73148979]
[1734198933088,0.20519176,101120.0,101100.0,1.44558448]
[1734198933386,0.20519176,101120.0,101110.0,0.59095824]
[1734198933595,0.20519176,101120.0,101110.0,0.41315991]
[1734198933786,0.20519176,101120.0,101110.0,0.59093152]
[1734198933984,0.20569176,101120.0,101110.0,0.59093152]
[1734198934181,0.20569176,101120.0,101110.0,0.41315991]
[1734198934387,0.20569176,101120.0,101110.0,0.59090775]
[1734198934585,0.20569176,101120.0,101110.0,0.41315991]
[1734198934987,0.20519176,101120.0,101110.0,0.41315991]
[1734198935182,0.20519176,101120.0,101110.0,1.13947991]
[1734198935387,0.20519176,101120.0,101110.0,0.77867991]
[1734198935586,0.20519176,101120.0,101110.0,1.13947991]
[1734198935889,0.20519176,101120.0,101110.0,1.43509362]
[1734198936187,0.20519176,101120.0,101110.0,0.77867991]
[1734198936389,0.0879446,101120.0,101110.0,1.65649844]
[1734198936692,0.0879446,101120.0,101110.0,1.07429362]
[1734198936885,0.0879446,101120.0,101110.0,1.71823498]
[1734198937195,0.62396057,101130.0,101120.0,0.049445]
[1734198937196,0.20519176,101130.0,101120.0,0.049445]
[1734198937394,0.20519176,101130.0,101120.0,0.40956322]
[1734198938191,0.20519176,101130.0,101120.0,0.58712931]
[1734198938192,0.0884446,101130.0,101120.0,0.58712931]
[1734198938398,0.0884446,101130.0,101120.0,0.61792931]
[1734198938894,0.0884446,101130.0,101120.0,0.80116322]
[1734198939085,0.0879446,101130.0,101120.0,0.80116322]
[1734198939291,0.0879446,101130.0,101120.0,0.97868449]
[1734198939588,0.0879446,101130.0,101120.0,0.80116322]
[1734198939993,0.0884446,101130.0,101120.0,0.44036322]
[1734198940198,0.0884446,101130.0,101120.0,0.61788217]
[1734198940992,0.0879446,101130.0,101120.0,0.61788217]
[1734198941194,0.20519176,101140.0,101130.0,0.049439]
[1734198941391,0.20519176,101140.0,101130.0,0.11108547]
[1734198941793,0.56599176,101140.0,101130.0,0.11108547]
[1734198942295,0.61542776,101140.0,101120.0,0.46378623]
[1734198942501,0.67862776,101140.0,101130.0,0.06164647]
[1734198943196,0.67844693,101140.0,101130.0,0.06164647]
[1734198943494,0.51094716,101140.0,101130.0,0.11108547]
[1734198943696,0.59871279,101140.0,101130.0,0.11108547]
[1734198943901,0.59871279,101140.0,101130.0,0.14198547]
[1734198944898,0.59871279,101140.0,101130.0,0.080339]
[1734198945094,0.56038116,101140.0,101130.0,0.14198547]
[1734198948002,0.56088116,101140.0,101130.0,0.14198547]
[1734198948997,0.56038116,101140.0,101130.0,0.14198547]
[1734198950105,0.56088116,101140.0,101130.0,0.14198547]
[1734198950707,0.47854716,101140.0,101130.0,0.14198547]
[1734198950906,0.47854716,101140.0,101130.0,0.17268547]
[1734198951107,0.56624933,101140.0,101130.0,0.17268547]
[1734198951405,0.56624669,101140.0,101130.0,0.17268547]
[1734198954411,0.56622527,101140.0,101130.0,0.17268547]
[1734198954611,0.47854716,101140.0,101130.0,0.17268547]
[1734198957110,0.11774716,101140.0,101130.0,0.17268547]
[1734198957302,0.47854716,101140.0,101130.0,0.35020442]
[1734198957507,0.11774716,101140.0,101130.0,0.35020442]
[1734198958004,0.11724716,101140.0,101130.0,0.35020442]
[1734198958411,0.47804716,101140.0,101130.0,0.35020442]
[1734198959115,0.11724716,101140.0,101130.0,0.35020442]
[1734198959714,0.11724716,101140.0,101130.0,0.5870297]
[1734198960112,0.11724716,101140.0,101130.0,0.35020442]
[1734198960113,0.20503721,101140.0,101130.0,0.35020442]
[1734198960310,0.11724716,101140.0,101130.0,0.5870297]
[1734198960613,0.20506293,101140.0,101130.0,0.5870297]
[1734198961201,0.11724716,101140.0,101130.0,0.5870297]
[1734198962304,0.11724716,101140.0,101130.0,0.40951075]
[1734198962717,0.11724716,101140.0,101130.0,0.47115722]
[1734198962910,0.55564441,101150.0,101140.0,0.049434]
[1734198962911,0.62334996,101150.0,101140.0,0.049434]
[1734198963212,0.26304996,101150.0,101140.0,0.58727297]
[1734198963711,0.11763655,101150.0,101140.0,0.58727297]
[1734198964112,0.20498588,101150.0,101140.0,0.40955222]
[1734198965015,0.20548588,101150.0,101140.0,0.43985222]
[1734198965314,0.20548588,101150.0,101140.0,1.08394615]
[1734198965315,0.08834933,101150.0,101140.0,1.08394615]
[1734198965520,0.08834933,101150.0,101140.0,1.32077026]
[1734198965723,0.08834933,101150.0,101140.0,1.32080453]
[1734198966424,0.08834933,101150.0,101140.0,1.08398027]
[1734198966719,0.08834933,101150.0,101140.0,1.32075418]
[1734198966920,0.0005,101150.0,101140.0,1.44938027]
[1734198967120,0.08834933,101150.0,101140.0,1.44938027]
[1734198967322,0.0005,101150.0,101140.0,1.44938027]
[1734198968021,0.49955764,101160.0,101140.0,1.63664657]
[1734198968215,0.49955764,101160.0,101150.0,0.26348112]
[1734198968421,0.41170831,101160.0,101150.0,0.26348112]
[1734198968720,0.49946654,101160.0,101150.0,0.26348112]
[1734198969027,0.65206819,101160.0,101150.0,0.17752565]
[1734198969214,0.049429,101150.0,101140.0,0.89070542]
[1734198969420,0.5294782,101150.0,101140.0,0.90291889]
[1734198969616,0.5294782,101150.0,101140.0,0.95235289]
[1734198969813,0.441729,101150.0,101140.0,0.71565259]
[1734198970013,0.441729,101150.0,101140.0,0.65400612]
[1734198970221,0.441729,101150.0,101140.0,0.71565259]
[1734198971015,0.441729,101150.0,101140.0,0.65400612]
[1734198971816,0.441729,101150.0,101140.0,0.28860612]
[1734198972723,0.441729,101150.0,101140.0,0.35025259]
[1734198973420,0.52946511,101150.0,101140.0,0.35025259]
[1734198973623,0.441729,101150.0,101140.0,0.35025259]
[1734198973819,0.44854038,101150.0,101140.0,0.35025259]
[1734198974018,0.44854038,101150.0,101140.0,0.58695289]
[1734198974219,0.08774038,101150.0,101140.0,0.77022724]
[1734198975721,0.20246538,101160.0,101150.0,0.049429]
[1734198975927,0.20246538,101160.0,101150.0,0.2885324]
[1734198976126,0.20196538,101160.0,101150.0,0.2885324]
[1734198976436,0.13716538,101160.0,101150.0,0.2885324]
[1734198977129,0.13766538,101160.0,101150.0,0.3207324]
[1734198977825,0.08824038,101160.0,101150.0,0.38237887]
[1734198978030,0.08774038,101160.0,101150.0,0.3207324]
[1734198979022,0.08824038,101160.0,101150.0,0.3207324]
[1734198979532,0.08824038,101160.0,101150.0,0.38237887]
[1734198979735,0.08824038,101160.0,101150.0,0.3518324]
[1734198980122,0.08774038,101160.0,101150.0,0.3518324]
[1734198980323,0.08774038,101160.0,101150.0,0.5885327]
[1734198980529,0.08774038,101160.0,101150.0,0.3518324]
[1734198980824,0.08774038,101160.0,101150.0,0.5885327]
[1734198981220,0.08824038,101160.0,101150.0,0.5885327]
[1734198981720,0.08824038,101160.0,101150.0,0.83352224]